fUSD/lending_fUSD_20260624
["ID","MTS","AMOUNT","RATE_DAILY","PERIOD"]
[426279038,1782234550000,-234.4687021,7.018e-05,2]
[426279033,1782234550000,-10000.0,7.018e-05,2]
[426279037,1782234550000,-10000.0,7.018e-05,2]
[426279036,1782234550000,-10000.0,7.018e-05,2]
[426279035,1782234550000,-10000.0,7.018e-05,2]
[426279041,1782234550000,-10000.0,7.018e-05,2]
[426279046,1782234551000,-2.2894173,7.018e-05,2]
[426279045,1782234551000,-2500.0,7.018e-05,2]
[426279044,1782234551000,-10000.0,7.018e-05,2]
[426279043,1782234551000,-10000.0,7.018e-05,2]
[426279042,1782234551000,-10000.0,7.018e-05,2]
[426279047,1782234552000,-2.2894173,6.968e-05,2]
[426279048,1782234553000,-157.7105827,6.968e-05,2]
[426279049,1782234553000,-702.6694173,7.018e-05,2]
[426279050,1782234553000,-500.0,6.701e-05,2]
[426279051,1782234553000,-360.38,6.701e-05,2]
[426279052,1782234554000,-111.03854966,6.701e-05,2]
[426279053,1782234554000,-216.06209804,6.917e-05,2]
[426279055,1782234554000,-368390.33008187,7.018e-05,2]
[426279056,1782234554000,-150.0,7.017e-05,2]
[426279054,1782234554000,-282.56927043,6.917e-05,2]
[426279057,1782234555000,-3587.9117179,7.018e-05,2]
[426279058,1782234555000,-3485.56017723,7.018e-05,2]
[426279059,1782234560000,-977.81085106,7.018e-05,2]
[426279064,1782234580000,-3142.05075417,7.018e-05,2]
[426279063,1782234580000,-1375.20290998,7.018e-05,2]
[426279061,1782234580000,-1000.0,7.018e-05,2]
[426279060,1782234580000,-1000.0,7.018e-05,2]
[426279062,1782234580000,-507.17824583,7.018e-05,2]
[426279065,1782234604000,-150.0,6.5e-05,2]
[426279066,1782234606000,-4022.86979401,7.018e-05,2]
[426279067,1782234606000,-4022.86979401,7.018e-05,2]
[426279068,1782234606000,-596.01710513,7.018e-05,2]
[426279069,1782234623000,-52000.0,7.018e-05,2]
[426279094,1782234633000,-1531.13634911,8e-05,2]
[426279096,1782234633000,-971.293319,8.178e-05,2]
[426279100,1782234633000,-500.0,8.219e-05,2]
[426279095,1782234633000,-2500.0,8e-05,2]
[426279098,1782234633000,-500.0,8.219e-05,2]
[426279092,1782234633000,-7878.860853,7.945e-05,2]
[426279093,1782234633000,-166.66666666,8e-05,2]
[426279090,1782234633000,-1282.64528639,7.864e-05,2]
[426279091,1782234633000,-165.1,7.934e-05,2]
[426279089,1782234633000,-1282.64528638,7.864e-05,2]
[426279086,1782234633000,-500.0,7.781e-05,2]
[426279084,1782234633000,-255.0,7.719e-05,2]
[426279085,1782234633000,-165.56,7.765e-05,2]
[426279087,1782234633000,-167.19,7.781e-05,2]
[426279088,1782234633000,-1282.64528638,7.864e-05,2]
[426279099,1782234633000,-500.0,8.219e-05,2]
[426279081,1782234633000,-822.22625349,7.565e-05,2]
[426279082,1782234633000,-184.77099341,7.647e-05,2]
[426279080,1782234633000,-239.0,7.425e-05,2]
[426279079,1782234633000,-250.0,7.371e-05,2]
[426279078,1782234633000,-1593.62,7.144e-05,2]
[426279076,1782234633000,-1865.55951316,7.108e-05,2]
[426279077,1782234633000,-1031.51080939,7.117e-05,2]
[426279074,1782234633000,-150.0,7.087e-05,2]
[426279075,1782234633000,-250.0,7.1e-05,2]
[426279073,1782234633000,-216.39158367,7.021e-05,2]
[426279072,1782234633000,-1476026.47178507,7.018e-05,2]
[426279071,1782234633000,-2496.34926,7.018e-05,2]
[426279083,1782234633000,-250.0,7.719e-05,2]
[426279097,1782234633000,-5260.6939,8.192e-05,2]
[426279122,1782234633000,-500.0,8.219e-05,2]
[426279103,1782234633000,-500.0,8.219e-05,2]
[426279101,1782234633000,-500.0,8.219e-05,2]
[426279128,1782234633000,-500.0,8.219e-05,2]
[426279132,1782234633000,-500.0,8.219e-05,2]
[426279129,1782234633000,-500.0,8.219e-05,2]
[426279127,1782234633000,-452.0,8.219e-05,2]
[426279131,1782234633000,-500.0,8.219e-05,2]
[426279126,1782234633000,-500.0,8.219e-05,2]
[426279125,1782234633000,-500.0,8.219e-05,2]
[426279124,1782234633000,-452.0,8.219e-05,2]
[426279120,1782234633000,-500.0,8.219e-05,2]
[426279123,1782234633000,-500.0,8.219e-05,2]
[426279117,1782234633000,-500.0,8.219e-05,2]
[426279119,1782234633000,-500.0,8.219e-05,2]
[426279121,1782234633000,-452.0,8.219e-05,2]
[426279130,1782234633000,-452.0,8.219e-05,2]
[426279115,1782234633000,-500.0,8.219e-05,2]
[426279118,1782234633000,-500.0,8.219e-05,2]
[426279102,1782234633000,-500.0,8.219e-05,2]
[426279106,1782234633000,-500.0,8.219e-05,2]
[426279107,1782234633000,-500.0,8.219e-05,2]
[426279108,1782234633000,-500.0,8.219e-05,2]
[426279110,1782234633000,-500.0,8.219e-05,2]
[426279105,1782234633000,-500.0,8.219e-05,2]
[426279111,1782234633000,-500.0,8.219e-05,2]
[426279116,1782234633000,-452.0,8.219e-05,2]
[426279109,1782234633000,-500.0,8.219e-05,2]
[426279104,1782234633000,-500.0,8.219e-05,2]
[426279113,1782234633000,-452.0,8.219e-05,2]
[426279112,1782234633000,-500.0,8.219e-05,2]
[426279114,1782234633000,-500.0,8.219e-05,2]
[426279170,1782234634000,-500.0,8.219e-05,2]
[426279173,1782234634000,-150.0,8.219e-05,2]
[426279169,1782234634000,-173.74778307,8.219e-05,2]
[426279164,1782234634000,-474.48877466,8.219e-05,2]
[426279166,1782234634000,-515.0179115,8.219e-05,2]
[426279163,1782234634000,-452.0,8.219e-05,2]
[426279168,1782234634000,-150.0,8.219e-05,2]
[426279167,1782234634000,-150.0,8.219e-05,2]
[426279171,1782234634000,-150.0,8.219e-05,2]
[426279190,1782234634000,-500.0,8.219e-05,2]
[426279175,1782234634000,-500.0,8.219e-05,2]
[426279165,1782234634000,-500.0,8.219e-05,2]
[426279182,1782234634000,-500.0,8.219e-05,2]
[426279180,1782234634000,-494.4659239,8.219e-05,2]
[426279179,1782234634000,-500.0,8.219e-05,2]
[426279177,1782234634000,-500.0,8.219e-05,2]
[426279181,1782234634000,-500.0,8.219e-05,2]
[426279178,1782234634000,-432.38803519,8.219e-05,2]
[426279174,1782234634000,-500.0,8.219e-05,2]
[426279183,1782234634000,-500.0,8.219e-05,2]
[426279184,1782234634000,-500.0,8.219e-05,2]
[426279186,1782234634000,-500.0,8.219e-05,2]
[426279185,1782234634000,-500.0,8.219e-05,2]
[426279193,1782234634000,-500.0,8.219e-05,2]
[426279162,1782234634000,-452.0,8.219e-05,2]
[426279176,1782234634000,-188.21231056,8.219e-05,2]
[426279160,1782234634000,-452.0,8.219e-05,2]
[426279143,1782234634000,-606.10651734,8.219e-05,2]
[426279157,1782234634000,-561.7488493,8.219e-05,2]
[426279134,1782234634000,-500.0,8.219e-05,2]
[426279133,1782234634000,-452.0,8.219e-05,2]
[426279136,1782234634000,-500.0,8.219e-05,2]
[426279135,1782234634000,-500.0,8.219e-05,2]
[426279141,1782234634000,-500.0,8.219e-05,2]
[426279139,1782234634000,-452.0,8.219e-05,2]
[426279138,1782234634000,-500.0,8.219e-05,2]
[426279146,1782234634000,-452.0,8.219e-05,2]
[426279140,1782234634000,-250.17756875,8.219e-05,2]
[426279147,1782234634000,-500.0,8.219e-05,2]
[426279137,1782234634000,-406.98018119,8.219e-05,2]
[426279145,1782234634000,-452.0,8.219e-05,2]
[426279144,1782234634000,-452.0,8.219e-05,2]
[426279142,1782234634000,-452.0,8.219e-05,2]
[426279148,1782234634000,-452.0,8.219e-05,2]
[426279149,1782234634000,-500.0,8.219e-05,2]
[426279150,1782234634000,-452.0,8.219e-05,2]
[426279152,1782234634000,-452.0,8.219e-05,2]
[426279151,1782234634000,-500.0,8.219e-05,2]
[426279153,1782234634000,-500.0,8.219e-05,2]
[426279154,1782234634000,-452.0,8.219e-05,2]
[426279159,1782234634000,-452.0,8.219e-05,2]
[426279156,1782234634000,-452.0,8.219e-05,2]
[426279155,1782234634000,-500.0,8.219e-05,2]
[426279158,1782234634000,-452.0,8.219e-05,2]
[426279161,1782234634000,-452.0,8.219e-05,2]
[426279191,1782234634000,-500.0,8.219e-05,2]
[426279172,1782234634000,-500.0,8.219e-05,2]
[426279187,1782234634000,-500.0,8.219e-05,2]
[426279219,1782234634000,-872.0,8.219e-05,2]
[426279222,1782234634000,-872.0,8.219e-05,2]
[426279226,1782234634000,-872.0,8.219e-05,2]
[426279224,1782234634000,-872.0,8.219e-05,2]
[426279225,1782234634000,-872.0,8.219e-05,2]
[426279227,1782234634000,-872.0,8.219e-05,2]
[426279228,1782234634000,-872.0,8.219e-05,2]
[426279229,1782234634000,-872.0,8.219e-05,2]
[426279233,1782234634000,-872.0,8.219e-05,2]
[426279231,1782234634000,-872.0,8.219e-05,2]
[426279236,1782234634000,-500.0,8.219e-05,2]
[426279235,1782234634000,-500.0,8.219e-05,2]
[426279239,1782234634000,-500.0,8.219e-05,2]
[426279230,1782234634000,-872.0,8.219e-05,2]
[426279234,1782234634000,-876.3631274,8.219e-05,2]
[426279237,1782234634000,-500.0,8.219e-05,2]
[426279238,1782234634000,-500.0,8.219e-05,2]
[426279240,1782234634000,-500.0,8.219e-05,2]
[426279242,1782234634000,-500.0,8.219e-05,2]
[426279243,1782234634000,-500.0,8.219e-05,2]
[426279241,1782234634000,-500.0,8.219e-05,2]
[426279244,1782234634000,-500.0,8.219e-05,2]
[426279245,1782234634000,-500.0,8.219e-05,2]
[426279246,1782234634000,-500.0,8.219e-05,2]
[426279189,1782234634000,-500.0,8.219e-05,2]
[426279223,1782234634000,-872.0,8.219e-05,2]
[426279220,1782234634000,-872.0,8.219e-05,2]
[426279232,1782234634000,-872.0,8.219e-05,2]
[426279218,1782234634000,-872.0,8.219e-05,2]
[426279221,1782234634000,-872.0,8.219e-05,2]
[426279188,1782234634000,-500.0,8.219e-05,2]
[426279192,1782234634000,-500.0,8.219e-05,2]
[426279194,1782234634000,-500.0,8.219e-05,2]
[426279195,1782234634000,-500.0,8.219e-05,2]
[426279198,1782234634000,-500.0,8.219e-05,2]
[426279197,1782234634000,-573.35020874,8.219e-05,2]
[426279202,1782234634000,-500.0,8.219e-05,2]
[426279200,1782234634000,-153.41932874,8.219e-05,2]
[426279204,1782234634000,-500.0,8.219e-05,2]
[426279201,1782234634000,-500.0,8.219e-05,2]
[426279199,1782234634000,-500.0,8.219e-05,2]
[426279205,1782234634000,-500.0,8.219e-05,2]
[426279196,1782234634000,-500.0,8.219e-05,2]
[426279206,1782234634000,-500.0,8.219e-05,2]
[426279216,1782234634000,-872.0,8.219e-05,2]
[426279203,1782234634000,-500.0,8.219e-05,2]
[426279211,1782234634000,-872.0,8.219e-05,2]
[426279215,1782234634000,-872.0,8.219e-05,2]
[426279213,1782234634000,-872.0,8.219e-05,2]
[426279217,1782234634000,-872.0,8.219e-05,2]
[426279214,1782234634000,-872.0,8.219e-05,2]
[426279209,1782234634000,-300.0,8.219e-05,2]
[426279210,1782234634000,-450.0,8.219e-05,2]
[426279208,1782234634000,-500.0,8.219e-05,2]
[426279212,1782234634000,-872.0,8.219e-05,2]
[426279207,1782234634000,-500.0,8.219e-05,2]
[426279274,1782234635000,-32068.27847434,8.474e-05,2]
[426279269,1782234635000,-2000.0,8.219e-05,2]
[426279270,1782234635000,-182.12261359,8.241e-05,2]
[426279273,1782234635000,-278.23164069,8.45e-05,2]
[426279272,1782234635000,-166.61,8.447e-05,2]
[426279271,1782234635000,-167.19,8.423e-05,2]
[426279268,1782234635000,-500.0,8.219e-05,2]
[426279276,1782234635000,-433.0,8.491e-05,2]
[426279282,1782234635000,-500.0,9.041e-05,2]
[426279277,1782234635000,-500.0,8.493e-05,2]
[426279278,1782234635000,-500.0,8.767e-05,2]
[426279279,1782234635000,-500.0,8.767e-05,2]
[426279281,1782234635000,-500.0,8.932e-05,2]
[426279280,1782234635000,-166.7,8.793e-05,2]
[426279267,1782234635000,-199.19,8.219e-05,2]
[426279283,1782234635000,-596.214787,9.041e-05,2]
[426279275,1782234635000,-143475.66305987,8.474e-05,2]
[426279265,1782234635000,-702.0,8.219e-05,2]
[426279252,1782234635000,-500.0,8.219e-05,2]
[426279264,1782234635000,-702.0,8.219e-05,2]
[426279285,1782234635000,-172.26748682,9.124e-05,2]
[426279250,1782234635000,-500.0,8.219e-05,2]
[426279249,1782234635000,-500.0,8.219e-05,2]
[426279248,1782234635000,-500.0,8.219e-05,2]
[426279247,1782234635000,-500.0,8.219e-05,2]
[426279251,1782234635000,-500.0,8.219e-05,2]
[426279254,1782234635000,-500.0,8.219e-05,2]
[426279253,1782234635000,-500.0,8.219e-05,2]
[426279256,1782234635000,-500.0,8.219e-05,2]
[426279255,1782234635000,-500.0,8.219e-05,2]
[426279258,1782234635000,-500.0,8.219e-05,2]
[426279263,1782234635000,-702.0,8.219e-05,2]
[426279262,1782234635000,-702.0,8.219e-05,2]
[426279260,1782234635000,-343.57252693,8.219e-05,2]
[426279261,1782234635000,-702.0,8.219e-05,2]
[426279257,1782234635000,-500.0,8.219e-05,2]
[426279259,1782234635000,-500.0,8.219e-05,2]
[426279266,1782234635000,-702.0,8.219e-05,2]
[426279286,1782234635000,-2000.0,9.247e-05,2]
[426279294,1782234635000,-3256.80927443,9.681e-05,2]
[426279290,1782234635000,-732.77721091,9.437e-05,2]
[426279311,1782234635000,-3710.0,0.0001018,5]
[426279309,1782234635000,-158.77811248,0.00010171,2]
[426279315,1782234635000,-961.03388855,0.000109,2]
[426279313,1782234635000,-2000.0,0.00010274,2]
[426279316,1782234635000,-961.03388852,0.000109,2]
[426279312,1782234635000,-3736.0,0.0001018,5]
[426279317,1782234635000,-961.03388852,0.000109,2]
[426279314,1782234635000,-876.73,0.00010278,2]
[426279319,1782234635000,-200.0,0.00010959,2]
[426279321,1782234635000,-200.0,0.00010959,2]
[426279326,1782234635000,-150.0,0.00010959,2]
[426279322,1782234635000,-200.0,0.00010959,2]
[426279320,1782234635000,-200.0,0.00010959,2]
[426279325,1782234635000,-166.66,0.00010959,2]
[426279324,1782234635000,-150.0,0.00010959,2]
[426279323,1782234635000,-200.0,0.00010959,2]
[426279293,1782234635000,-231995.60276607,9.641e-05,2]
[426279310,1782234635000,-411.20008938,0.00010171,2]
[426279308,1782234635000,-282.98510535,0.00010171,2]
[426279318,1782234635000,-961.03388852,0.000109,2]
[426279300,1782234635000,-217.54705075,0.0001,2]
[426279287,1782234635000,-250.0,9.275e-05,2]
[426279306,1782234635000,-178.80579197,0.0001,2]
[426279292,1782234635000,-5834.39723393,9.641e-05,2]
[426279284,1782234635000,-167.19,9.065e-05,2]
[426279291,1782234635000,-209.88737658,9.458e-05,2]
[426279289,1782234635000,-317.0,9.34e-05,2]
[426279288,1782234635000,-500.0,9.315e-05,2]
[426279296,1782234635000,-9000.0,0.0001,2]
[426279295,1782234635000,-500.0,9.726e-05,2]
[426279297,1782234635000,-151.0,0.0001,2]
[426279302,1782234635000,-214.0,0.0001,2]
[426279307,1782234635000,-876.73,0.00010027,2]
[426279301,1782234635000,-214.0,0.0001,2]
[426279304,1782234635000,-334.61915142,0.0001,2]
[426279305,1782234635000,-354.08932249,0.0001,2]
[426279299,1782234635000,-217.54705075,0.0001,2]
[426279298,1782234635000,-217.54705075,0.0001,2]
[426279303,1782234635000,-216.15929938,0.0001,2]
[426279352,1782234636000,-666.0,0.00011421,2]
[426279367,1782234636000,-516.38686521,0.00012652,2]
[426279362,1782234636000,-199.19,0.00012329,2]
[426279359,1782234636000,-3803.15411235,0.0001224,2]
[426279356,1782234636000,-9000.0,0.00012,2]
[426279360,1782234636000,-666.0,0.0001229,2]
[426279358,1782234636000,-157.19716817,0.00012222,2]
[426279355,1782234636000,-251.13166683,0.0001181,2]
[426279364,1782234636000,-355.37392921,0.00012652,2]
[426279361,1782234636000,-237830.0,0.00012315,2]
[426279366,1782234636000,-199.39424598,0.00012652,2]
[426279377,1782234636000,-504.87131804,0.00013698,2]
[426279363,1782234636000,-2000.0,0.00012329,2]
[426279369,1782234636000,-666.0,0.0001316,2]
[426279365,1782234636000,-173.83912441,0.00012652,2]
[426279370,1782234636000,-151.0,0.00013425,2]
[426279371,1782234636000,-151.0,0.00013425,2]
[426279372,1782234636000,-150.0,0.00013488,2]
[426279374,1782234636000,-1500.0,0.00013625,2]
[426279375,1782234636000,-317.59444584,0.00013689,2]
[426279376,1782234636000,-500.0,0.00013698,2]
[426279354,1782234636000,-166.66,0.00011507,2]
[426279368,1782234636000,-9000.0,0.00013,2]
[426279353,1782234636000,-961.03388852,0.0001148,2]
[426279332,1782234636000,-1602.63485508,0.00011,2]
[426279350,1782234636000,-3803.15411235,0.00011354,2]
[426279373,1782234636000,-150.0,0.00013488,2]
[426279331,1782234636000,-7397.36514492,0.00011,2]
[426279328,1782234636000,-150.0,0.00010989,2]
[426279327,1782234636000,-493.1,0.00010989,2]
[426279329,1782234636000,-532.5,0.00010989,2]
[426279330,1782234636000,-1000.0,0.00010999,2]
[426279334,1782234636000,-300.0,0.00011098,2]
[426279344,1782234636000,-166.66,0.00011178,2]
[426279335,1782234636000,-672.48135843,0.00011098,2]
[426279336,1782234636000,-666.0,0.00011098,2]
[426279333,1782234636000,-166.66,0.00011068,2]
[426279337,1782234636000,-3803.15411238,0.00011099,2]
[426279340,1782234636000,-3803.15411235,0.00011099,2]
[426279339,1782234636000,-3803.15411235,0.00011099,2]
[426279338,1782234636000,-3803.15411235,0.00011099,2]
[426279343,1782234636000,-157.19716817,0.00011099,2]
[426279341,1782234636000,-3803.15411235,0.00011099,2]
[426279342,1782234636000,-157.1971682,0.00011099,2]
[426279345,1782234636000,-272.62777345,0.00011195,2]
[426279347,1782234636000,-237.69,0.0001122,2]
[426279346,1782234636000,-396.15005416,0.00011195,2]
[426279348,1782234636000,-166.66,0.00011288,2]
[426279349,1782234636000,-2000.0,0.00011301,2]
[426279351,1782234636000,-166.66,0.00011397,2]
[426279379,1782234636000,-500.0,0.00013698,2]
[426279357,1782234636000,-1947.83,0.00012055,2]
[426279380,1782234636000,-500.0,0.00013698,2]
[426279409,1782234636000,-500.0,0.00013698,2]
[426279410,1782234636000,-500.0,0.00013698,2]
[426279414,1782234636000,-500.0,0.00013698,2]
[426279428,1782234636000,-174.37096728,0.00013716,2]
[426279411,1782234636000,-286.27667049,0.00013698,2]
[426279415,1782234636000,-500.0,0.00013698,2]
[426279413,1782234636000,-500.0,0.00013698,2]
[426279412,1782234636000,-515.31883323,0.00013698,2]
[426279418,1782234636000,-500.0,0.00013698,2]
[426279417,1782234636000,-500.0,0.00013698,2]
[426279419,1782234636000,-500.0,0.00013698,2]
[426279420,1782234636000,-500.0,0.00013698,2]
[426279421,1782234636000,-500.0,0.00013698,2]
[426279423,1782234636000,-500.0,0.00013698,2]
[426279422,1782234636000,-500.0,0.00013698,2]
[426279424,1782234636000,-200.0,0.00013699,2]
[426279426,1782234636000,-502.35483969,0.00013716,2]
[426279425,1782234636000,-151.0,0.00013699,2]
[426279427,1782234636000,-245.73813185,0.00013716,2]
[426279429,1782234636000,-281.8627261,0.00013716,2]
[426279430,1782234636000,-729.96193465,0.00013716,2]
[426279431,1782234636000,-3562.99580263,0.00014,2]
[426279378,1782234636000,-500.0,0.00013698,2]
[426279408,1782234636000,-278.64528759,0.00013698,2]
[426279407,1782234636000,-221.35471241,0.00013698,2]
[426279416,1782234636000,-500.0,0.00013698,2]
[426279400,1782234636000,-511.64223797,0.00013698,2]
[426279381,1782234636000,-500.0,0.00013698,2]
[426279406,1782234636000,-500.0,0.00013698,2]
[426279382,1782234636000,-500.0,0.00013698,2]
[426279384,1782234636000,-500.0,0.00013698,2]
[426279385,1782234636000,-500.0,0.00013698,2]
[426279387,1782234636000,-500.0,0.00013698,2]
[426279392,1782234636000,-500.0,0.00013698,2]
[426279388,1782234636000,-629.84,0.00013698,2]
[426279389,1782234636000,-500.0,0.00013698,2]
[426279391,1782234636000,-500.0,0.00013698,2]
[426279386,1782234636000,-500.0,0.00013698,2]
[426279390,1782234636000,-500.0,0.00013698,2]
[426279383,1782234636000,-500.0,0.00013698,2]
[426279394,1782234636000,-500.0,0.00013698,2]
[426279402,1782234636000,-500.0,0.00013698,2]
[426279393,1782234636000,-500.0,0.00013698,2]
[426279398,1782234636000,-500.0,0.00013698,2]
[426279395,1782234636000,-500.0,0.00013698,2]
[426279405,1782234636000,-500.0,0.00013698,2]
[426279403,1782234636000,-466.93662564,0.00013698,2]
[426279396,1782234636000,-500.0,0.00013698,2]
[426279399,1782234636000,-500.0,0.00013698,2]
[426279404,1782234636000,-33.06337436,0.00013698,2]
[426279401,1782234636000,-576.42900055,0.00013698,2]
[426279397,1782234636000,-500.0,0.00013698,2]
[426279438,1782234638000,-385.94362168,8.219e-05,2]
[426279435,1782234638000,-362.0,8.219e-05,2]
[426279437,1782234638000,-702.0,8.219e-05,2]
[426279436,1782234638000,-702.0,8.219e-05,2]
[426279433,1782234638000,-160.0,7.018e-05,2]
[426279434,1782234638000,-340.0,8.219e-05,2]
[426279519,1782234640000,-316.05637832,8.219e-05,2]
[426279520,1782234640000,-702.0,8.219e-05,2]
[426279521,1782234640000,-267.58409286,8.219e-05,2]
[426279551,1782234643000,-698.12725813,8.219e-05,2]
[426279550,1782234643000,-702.0,8.219e-05,2]
[426279549,1782234643000,-636.67116728,8.219e-05,2]
[426279547,1782234643000,-434.41590714,8.219e-05,2]
[426279548,1782234643000,-65.32883272,8.219e-05,2]
[426279608,1782234658000,-295.96704937,0.00010171,2]
[426279601,1782234658000,-702.0,8.219e-05,2]
[426279599,1782234658000,-3.87274187,8.219e-05,2]
[426279600,1782234658000,-702.0,8.219e-05,2]
[426279602,1782234658000,-702.0,8.219e-05,2]
[426279603,1782234658000,-702.0,8.219e-05,2]
[426279606,1782234658000,-702.0,8.219e-05,2]
[426279609,1782234658000,-285.13457479,0.00011195,2]
[426279607,1782234658000,-702.0,8.219e-05,2]
[426279616,1782234658000,-371.67671112,0.00012652,2]
[426279610,1782234658000,-75086.81340307,0.00012051,2]
[426279617,1782234658000,-5276.45559516,0.00013031,2]
[426279615,1782234658000,-961.03388852,0.0001262,2]
[426279614,1782234658000,-46723.3884944,0.00012051,2]
[426279605,1782234658000,-702.0,8.219e-05,2]
[426279612,1782234658000,-371757.72088677,0.00012051,2]
[426279611,1782234658000,-285.5522879,0.00012051,2]
[426279604,1782234658000,-702.0,8.219e-05,2]
[426279613,1782234658000,-29494.02492786,0.00012051,2]
[426279619,1782234712000,-160.0,8.219e-05,2]
[426279621,1782234712000,-808.4064485,9.041e-05,2]
[426279620,1782234712000,-500.0,8.63e-05,2]
[426279618,1782234712000,-717.00238632,8.219e-05,2]
[426279625,1782234712000,-500.0,9.797e-05,2]
[426279623,1782234712000,-300.0,9.041e-05,2]
[426279627,1782234712000,-500.0,9.797e-05,2]
[426279622,1782234712000,-500.0,9.041e-05,2]
[426279626,1782234712000,-500.0,9.797e-05,2]
[426279624,1782234712000,-151.06939213,9.458e-05,2]
[426279628,1782234725000,516.88656888,6.701e-05,2]
[426279629,1782234774000,115563.63759049,6.866e-05,2]
[426279630,1782234851000,150.0,6.527e-05,2]
[426279631,1782234916000,4176.0,9.847e-05,5]
[426279633,1782235045000,-150.0,6.727e-05,2]
[426279634,1782235099000,-150.0,6.726e-05,2]
[426279637,1782235153000,-229.52490127,6.726e-05,2]
[426279638,1782235207000,-500.0,6.726e-05,2]
[426279639,1782235261000,-349.394356,6.725e-05,2]
[426279640,1782235314000,-500.0,6.725e-05,2]
[426279641,1782235368000,-244.5760492,6.724e-05,2]
[426279643,1782235422000,-160.66743089,6.724e-05,2]
[426279644,1782235475000,-971.29331867,6.724e-05,2]
[426279645,1782235491000,-500.0,6.723e-05,2]
[426279646,1782235521000,3332.0,9.847e-05,5]
[426279653,1782235723000,-411.79607984,6.721e-05,2]
[426279654,1782235723000,-500.0,6.721e-05,2]
[426279652,1782235723000,-247.74116775,6.721e-05,2]
[426279651,1782235723000,-500.0,6.721e-05,2]
[426279649,1782235723000,-171.20323444,6.721e-05,2]
[426279650,1782235723000,-500.0,6.721e-05,2]
[426279647,1782235723000,-300.0,6.7e-05,2]
[426279648,1782235723000,-165.62460461,6.711e-05,2]
[426279655,1782235724000,-500.0,6.721e-05,2]
[426279656,1782235724000,-402.49002525,6.721e-05,2]
[426279657,1782235724000,-97.50997475,6.721e-05,2]
[426279658,1782235724000,-636.40909179,6.721e-05,2]
[426279659,1782235724000,-500.0,6.721e-05,2]
[426279661,1782235724000,-289.19217836,6.721e-05,2]
[426279660,1782235724000,-500.0,6.721e-05,2]
[426279662,1782235744000,-210.80782164,6.721e-05,2]
[426279663,1782235748000,-500.0,6.721e-05,2]
[426279670,1782235748000,-313.29443903,6.721e-05,2]
[426279664,1782235748000,-500.0,6.721e-05,2]
[426279666,1782235748000,-500.0,6.721e-05,2]
[426279667,1782235748000,-500.0,6.721e-05,2]
[426279665,1782235748000,-500.0,6.721e-05,2]
[426279669,1782235748000,-500.0,6.721e-05,2]
[426279668,1782235748000,-500.0,6.721e-05,2]
[426279672,1782235748000,-500.0,6.721e-05,2]
[426279680,1782235748000,-373.41112194,6.721e-05,2]
[426279673,1782235748000,-500.0,6.721e-05,2]
[426279675,1782235748000,-500.0,6.721e-05,2]
[426279674,1782235748000,-500.0,6.721e-05,2]
[426279676,1782235748000,-500.0,6.721e-05,2]
[426279678,1782235748000,-500.0,6.721e-05,2]
[426279677,1782235748000,-500.0,6.721e-05,2]
[426279679,1782235748000,-126.58887806,6.721e-05,2]
[426279681,1782235748000,-450.0,6.721e-05,2]
[426279682,1782235748000,-250.27789619,6.721e-05,2]
[426279671,1782235748000,-186.70556097,6.721e-05,2]
[426279683,1782235749000,-249.72210381,6.721e-05,2]
[426279685,1782235749000,-500.0,6.721e-05,2]
[426279684,1782235749000,-500.0,6.721e-05,2]
[426279687,1782235749000,-500.0,6.721e-05,2]
[426279689,1782235749000,-500.0,6.721e-05,2]
[426279688,1782235749000,-500.0,6.721e-05,2]
[426279690,1782235749000,-500.0,6.721e-05,2]
[426279691,1782235749000,-379.31219019,6.721e-05,2]
[426279686,1782235749000,-500.0,6.721e-05,2]
[426279696,1782235773000,-500.0,6.721e-05,2]
[426279692,1782235773000,-120.68780981,6.721e-05,2]